Cogmind - Beta 16.1 @@@ ROGUE MODE // 2026.04.19 @ 10:48:59 Player: Sharded of Serpulo Result: Self-destructed Performance ------------- Evolutions (5) 2500 Regions Visited (4) 800 Robots Destroyed (43) 215 Value Destroyed (971) 971 Prototype IDs (0) 0 Alien Tech Used (0) 0 Bonus (800) 800 TOTAL SCORE: 5286 Bonus ------- Registered with UFD 300 Met Optimus in HQ 500 Cogmind --------- Core Integrity 896/1000 Matter 147/300 Energy 17/140 System Corruption 3% Temperature Cool (32) Movement Treading (560) Ox5 Location -5/Factory Parts ------- > --- POWER (2) -------- Light Deuterium Engine > --- PROPULSION (5) --- Light Treads > --- UTILITY (8) ------ Advanced Heat Sink Huge Storage Unit Improved Sensor Array Improved Signal Interpreter Particle Charger Improved Weapon Cycler > --- WEAPON (2) ------- Heavy Plasma Cannon Magnetic Acceleration Cannon > --- INVENTORY (25) --- Scrap Suit Small Storage Unit Signal Interpreter Seismic Detector Improved Shock Absorption System Improved Shock Absorption System Plasma Rifle Plasma Rifle Plasma Rifle Plasma Rifle Long-range Proton Cannon Heavy Phase Cannon Assault Rifle Assault Rifle Heavy Assault Rifle Heavy Assault Rifle Heavy Assault Rifle Magnetic Acceleration Cannon Flail Peak State ------------ > --- POWER ------------ Light Ion Engine Light Deuterium Engine > --- PROPULSION ------- Light Treads Light Treads Improved Treads Spiked Treads Medium Treads > --- UTILITY ---------- Advanced Heat Sink Advanced Cooling System Huge Storage Unit Improved Sensor Array Improved Signal Interpreter Particle Charger Improved Weapon Cycler Improved Shock Absorption System > --- WEAPON ----------- Heavy Plasma Cannon Heavy Phase Cannon > --- INVENTORY -------- Light Treads Scrap Suit Small Storage Unit Signal Interpreter Seismic Detector Improved Shock Absorption System Improved Shock Absorption System Plasma Rifle Plasma Rifle Plasma Rifle Plasma Rifle Long-range Proton Cannon Assault Rifle Assault Rifle Heavy Assault Rifle Heavy Assault Rifle Heavy Assault Rifle Magnetic Acceleration Cannon Magnetic Acceleration Cannon Flail [Rating: 65] Favorites ----------- Power Light Ion Engine Engine Light Ion Engine Propulsion Light Treads Treads Light Treads Utility Huge Storage Unit Device Improved Weapon Cycler Storage Huge Storage Unit Processor Signal Interpreter Weapon Assault Rifle Energy Cannon Heavy Plasma Cannon Ballistic Gun Assault Rifle Ballistic Cannon Magnetic Acceleration Cannon Impact Weapon Flail Build | -11 -10 -10 -7 -5 ------- Run | Yrd Mat Sub Scr Fac Slots Evolved 10 | . . . . 10 Power 1 | . . . . 1 Propulsion 3 | . . . . 3 Utility 6 | . . . . 6 Weapon . | . . . . . Parts Attached 37 | 6 8 2 1 20 Power 4 | 1 1 . . 2 Engine 4 | 1 1 . . 2 Core . | . . . . . Reactor . | . . . . . Propulsion 9 | 2 . 1 1 5 Treads 9 | 2 . 1 1 5 Leg . | . . . . . Wheel . | . . . . . Hover . | . . . . . Flight . | . . . . . Utility 13 | 1 3 . . 9 Device 8 | . . . . 8 Storage 3 | 1 2 . . . Processor 2 | . 1 . . 1 Hackware . | . . . . . Protection . | . . . . . Artifact . | . . . . . Weapon 11 | 2 4 1 . 4 Energy Gun . | . . . . . Energy Cannon 2 | . . . . 2 Ballistic Gun 6 | 2 3 1 . . Ballistic Cannon 2 | . . . . 2 Launcher . | . . . . . Special Weapon . | . . . . . Impact Weapon 1 | . 1 . . . Slashing Weapon . | . . . . . Piercing Weapon . | . . . . . Special Melee Weapon . | . . . . . Unidentified Prototypes . | . . . . . Parts Lost 8 | . . . . 8 Power 1 | . . . . 1 Propulsion 6 | . . . . 6 Utility 1 | . . . . 1 Weapon . | . . . . . Highest Loss Streak 7 | . . . . 7 To Critical Strikes . | . . . . . Average Backups 20 | . 16 25 24 18 Power . | . . 1 1 . Propulsion 3 | . 2 4 4 1 Utility 2 | . 1 3 3 5 Weapon 13 | . 11 17 16 11 Tool/Special . | . . . . . Unused Backups 26 | . 3 . 7 16 Power . | . . . . . Propulsion . | . . . . . Utility 5 | . . . . 5 Weapon 21 | . 3 . 7 11 Tool/Special . | . . . . . Average Slot Usage (%) 95 | . 93 100 100 83 Engine 13 | . 14 14 14 10 Treads 28 | . 28 28 28 28 Device 2 | . . . . 19 Storage 13 | . 14 14 14 5 Processor 10 | . 7 14 14 5 Ballistic Gun 23 | . 25 23 28 1 Impact Weapon 1 | . 2 4 . . Peak Build Rating 65 | 6 11 12 17 65 Average Rating 16 | 4 8 11 15 47 On Entrance 9 | . 6 11 12 17 Avg Prop Armor Cover (%) . | . . . . . Naked Turns . | . . . . . Heaviest Build 121 | 13 90 88 88 121 Greatest Support 111 | 40 40 40 48 111 Greatest Overweight (x) 2 | 1 2 2 2 1 Average Overweight (x) 1 | . 1 2 1 . Largest Inventory Capacity 25 | 8 25 25 25 25 Average Capacity 24 | 7 24 25 25 25 Most Carried 25 | 1 25 25 25 24 Average Carried 20 | . 16 25 24 20 Final Capacity 25 | 8 25 25 25 25 Final Carried 25 | 1 25 25 25 20 Scrap Suit Usage (%) 1 | . . . . 1 Class Distribution -------------------- 87% | Mutant 12% | Scavenger-Mutant Dominant Class ---------------- Mutant | -10/Materials Mutant | -10/Subcaves Mutant | -7/Scraptown Scavenger-Mutant | -5/Factory Resources | -11 -10 -10 -7 -5 ----------- Run | Yrd Mat Sub Scr Fac Matter Collected 870 | 175 457 . 40 198 Remotely . | . . . . . Salvage Created 1483 | 83 1083 . . 317 Parts 68 | 4 54 . . 10 Haulers Intercepted 2 | . 2 . . . Recyclers Shooed 1 | . 1 . . . Parts Field Recycled . | . . . . . Retrieved Matter . | . . . . . Parts Self-Destructed 7 | . . 7 . . Prevented . | . . . . . Parts Restored . | . . . . . Kills | -11 -10 -10 -7 -5 ------- Run | Yrd Mat Sub Scr Fac Combat Hostiles Destroyed 22 | . 14 . . 8 Guns 14 | . 14 . . . Cannons 2 | . . . . 2 AOE 4 | . . . . 4 Classes Destroyed 10 | 2 6 . . 2 Worker 5 | . 4 . . 1 Builder 2 | . 2 . . . Tunneler 4 | 1 3 . . . Hauler 2 | . 2 . . . Recycler 6 | 1 5 . . . Watcher 2 | . 1 . . 1 Swarmer 9 | . 9 . . . Grunt 9 | . 5 . . 4 Sentry 1 | . . . . 1 Programmer 3 | . . . . 3 Best Kill Streak 5 | 2 4 . . 5 Combat Bots Only 4 | . 3 . . 4 Max Kills in Single Turn 5 | 1 1 . . 5 Gunslinging . | . . . . . Exploded 4 | . . . . 4 Melee . | . . . . . Uniques/NPCs Destroyed . | . . . . . Combat | -11 -10 -10 -7 -5 -------- Run | Yrd Mat Sub Scr Fac Hostile Shots Fired 111 | . 74 . . 37 Missed 36 | . 21 . . 15 Hits 75 | . 53 . . 22 Projectile 75 | . 53 . . 22 AOE 2 | . . . . 2 Critical Strikes 4 | . 1 . . 3 Damage Taken 1699 | . 563 . . 1136 Core 191 | . 87 . . 104 Absorbed by Shields . | . . . . . Core Remaining (%) 82 | 100 . . 65 . Volleys Fired 87 | 6 57 . . 24 Largest 2 | 2 2 . . 2 Hottest 180 | 40 43 . . 180 Shots Fired 172 | 12 114 . . 46 Gun 126 | 12 114 . . . Cannon 46 | . . . . 46 Launcher . | . . . . . Special . | . . . . . Kinetic 150 | 12 114 . . 24 Thermal 22 | . . . . 22 Explosive . | . . . . . Electromagnetic . | . . . . . Robot Hit Streak 9 | 2 9 . . 9 Robot Miss Streak 5 | 1 5 . . 5 Penetration Max . | . . . . . Secondary Targets 3 | . 3 . . . Max Gunslinging Chain 1 | . 1 . . . Shots Hit Robots 114 | 7 79 . . 28 Core Hits 43 | 3 31 . . 9 Critical Kills 2 | . 1 . . 1 Critical Parts Destroyed 2 | . 2 . . . Critical Strikes 4 | . 3 . . 1 Meltdown 1 | . . . . 1 Smash 3 | . 3 . . . Melee Attacks 19 | . 16 3 . . Impact 19 | . 16 3 . . Slashing . | . . . . . Piercing . | . . . . . Sneak Attacks 13 | . 13 . . . Combat Hostiles . | . . . . . Follow-up Attacks . | . . . . . Damage Inflicted 3899 | 86 1658 . . 2155 Guns 855 | 86 769 . . . Cannons 1063 | . . . . 1063 Explosions 1092 | . . . . 1092 Melee 889 | . 889 . . . Ramming . | . . . . . Kinetic 1197 | 86 769 . . 342 Thermal 1813 | . . . . 1813 Explosive . | . . . . . Electromagnetic . | . . . . . Impact 889 | . 889 . . . Slashing . | . . . . . Piercing . | . . . . . Highest Corruption 3 | . . . . 3 Average Corruption 2 | . . . . 2 Corruption Purged . | . . . . . Corruption Blocked . | . . . . . Effects 9 | . . . . 9 Message Errors 2 | . . . . 2 Matter Fused 4 | . . . . 4 Heat Flow Errors 1 | . . . . 1 Misfires 1 | . . . . 1 Alerts 1 | . . . . 1 Overload Shots . | . . . . . Overflow Damage 631 | . 430 . . 201 Projectiles 50 | . . . . 50 Explosions 151 | . . . . 151 Melee 430 | . 430 . . . Knockbacks 8 | . 4 . . 4 Impact 4 | . 4 . . . Kinetic 3 | . . . . 3 Secondary 1 | . . . . 1 Self-Inflicted Damage . | . . . . . Shots . | . . . . . Rammed . | . . . . . Targets Rammed . | . . . . . Kicked . | . . . . . Crushed . | . . . . . Highest Temperature 195 | . 18 . . 195 Average Temperature 38 | . 8 . . 51 Received Heat Transfer 279 | . 228 . . 51 Siege Activations . | . . . . . Martial Activations . | . . . . . Shielding Activations . | . . . . . Robots Disrupted . | . . . . . Combat Hostiles . | . . . . . Robots Corrupted 4 | . 4 . . . Combat Hostiles . | . . . . . Parts Fried 10 | . 10 . . . Impact Corruptions 16 | . 16 . . . Robots Melted 2 | . . . . 2 Combat Hostiles 2 | . . . . 2 Parts Melted 3 | . . . . 3 Heat Transferred 1346 | . . . . 1346 Parts Sabotaged . | . . . . . Parts Stolen . | . . . . . Parts Stripped . | . . . . . Power Chain Reactions . | . . . . . Alert | -11 -10 -10 -7 -5 ------- Run | Yrd Mat Sub Scr Fac Maximum Alert Level 1 | . . . . 1 Low Security (%) 98 | 100 100 . . 94 Level 1 1 | . . . . 5 Level 2 . | . . . . . Level 3 . | . . . . . Level 4 . | . . . . . Level 5 . | . . . . . High Security . | . . . . . Max Security . | . . . . . Peak Influence 217 | 5 94 . . 217 Initial . | . . . . . Average 38 | 1 20 . . 103 Influence Increases 830 | 10 438 . . 382 Destroy 0b10 Robot/C 440 | . 280 . . 160 Destroy 0b10 Robot/NC 105 | 10 85 . . 10 Destroy Leader 98 | . 56 . . 42 Disable Machine 105 | . . . . 105 Destroy Structure 52 | . 2 . . 50 Lose Combat Pursuer 30 | . 15 . . 15 Influence Decreases 784 | 10 374 64 . 336 Entered New Map 32 | . . 32 . . Time Decay 672 | 10 374 32 . 256 Lost Part 80 | . . . . 80 Squads Dispatched 4 | . . . . 4 Investigation 1 | . . . . 1 Extermination 1 | . . . . 1 Reinforcement 2 | . . . . 2 Assault . | . . . . . Garrison . | . . . . . Intercept . | . . . . . Searches Triggered . | . . . . . Construction Impeded . | . . . . . Haulers Reinforced . | . . . . . Active Scanning Responses . | . . . . . Cargo Convoy Interrupts . | . . . . . Stealth | -11 -10 -10 -7 -5 --------- Run | Yrd Mat Sub Scr Fac Distress Signals . | . . . . . Communications Jammed . | . . . . . Distress Signals . | . . . . . Times Spotted 34 | . 22 . . 12 Peak Tracking Total 5 | . 4 . . 5 Tactical Retreats 2 | . 1 . . 1 Traps | -11 -10 -10 -7 -5 ------- Run | Yrd Mat Sub Scr Fac Traps Triggered 1 | . . . . 1 Indirectly . | . . . . . Trap Hack Attempts . | . . . . . Triggered . | . . . . . Disarmed . | . . . . . Reprogrammed . | . . . . . Reused . | . . . . . Traps Extracted . | . . . . . Installed . | . . . . . Triggered . | . . . . . Machines | -11 -10 -10 -7 -5 ---------- Run | Yrd Mat Sub Scr Fac Machines Disabled 7 | . . . . 7 Max in Single Turn 6 | . . . . 6 Machines Repaired . | . . . . . Machines Dismantled . | . . . . . Machines Sabotaged . | . . . . . Overloaded Fab Kills . | . . . . . Hacking | -11 -10 -10 -7 -5 --------- Run | Yrd Mat Sub Scr Fac Machines Accessed 7 | . 1 . 5 1 Terminals . | . . . . . Fabricators . | . . . . . Repair Stations . | . . . . . Recycling Units 2 | . 1 . . 1 Scanalyzers . | . . . . . Garrison Access . | . . . . . Total Hacks 24 | . 5 . 17 2 Successful 18 | . 1 . 17 . Failed 6 | . 4 . . 2 Catastrophic 1 | . . . . 1 Database Lockouts . | . . . . . Manual . | . . . . . Terminals . | . . . . . Fabricators . | . . . . . Repair Stations . | . . . . . Recycling Units 7 | . 5 . . 2 Scanalyzers . | . . . . . Garrison Access . | . . . . . Terminal Hacks 17 | . . . 17 . Record 17 | . . . 17 . Fabricator Hacks . | . . . . . Repair Station Hacks . | . . . . . Recycling Unit Hacks 1 | . 1 . . . Retrieve Components 1 | . 1 . . . Scanalyzer . | . . . . . Garrison Access Hacks . | . . . . . Unauthorized Hacks . | . . . . . Terminals . | . . . . . Fabricators . | . . . . . Repair Stations . | . . . . . Recycling Units . | . . . . . Scanalyzers . | . . . . . Garrison Access . | . . . . . Data Cores Recovered . | . . . . . Used . | . . . . . Hacking Detections 2 | . 1 . . 1 Full Trace Events 1 | . . . . 1 Feedback Events . | . . . . . Feedback Blocked . | . . . . . Robot Schematics Acquired . | . . . . . Robots Built . | . . . . . Authchips . | . . . . . Time . | . . . . . Total Robot Build Rating . | . . . . . Part Schematics Acquired . | . . . . . Parts Built . | . . . . . Authchips . | . . . . . Time . | . . . . . Total Part Build Rating . | . . . . . Part Studies Acquired . | . . . . . Parts Repaired . | . . . . . Time . | . . . . . Parts Recycled . | . . . . . Recycled Matter . | . . . . . Retrieved Matter . | . . . . . Retrieved Components 9 | . 9 . . . Parts Scanalyzed . | . . . . . Part Schematics Acquired . | . . . . . Parts Damaged . | . . . . . Bothacking | -11 -10 -10 -7 -5 ------------ Run | Yrd Mat Sub Scr Fac Used RIF Installer . | . . . . . Robots Hacked . | . . . . . Non-combat . | . . . . . Combat . | . . . . . Robot Hacks Applied . | . . . . . Relay Couplers Released . | . . . . . Fabnet Peak Effective % . | . . . . . Robots Rewired . | . . . . . Allies Hacked . | . . . . . Hacks Repelled . | . . . . . Allies | -11 -10 -10 -7 -5 -------- Run | Yrd Mat Sub Scr Fac Total Allies . | . . . . . Largest Group . | . . . . . Highest-Rated Group . | . . . . . Highest-Rated Ally . | . . . . . Initial UFD Resources 38 | . . . . 38 Total Orders . | . . . . . Ally Attacks . | . . . . . Total Damage . | . . . . . Kills . | . . . . . Allies Corrupted . | . . . . . Allies Melted . | . . . . . Intel | -11 -10 -10 -7 -5 ------- Run | Yrd Mat Sub Scr Fac Active Infowar (turns) 454 | . . . . 454 Sensors 454 | . . . . 454 Robot Analysis Total . | . . . . . Derelict Logs Recovered . | . . . . . Drone Launches . | . . . . . Drone Recoveries . | . . . . . Exploration | -11 -10 -10 -7 -5 ------------- Run | Yrd Mat Sub Scr Fac Turns Passed 7265 | 69 3048 547 2694 907 Spaces Moved 2544 | 28 913 152 1063 388 Core 2 | 2 . . . . Treads 2542 | 26 913 152 1063 388 Legs . | . . . . . Wheels . | . . . . . Hover . | . . . . . Flight . | . . . . . Fastest Speed 50 | 50 160 320 250 160 Average Speed 267 | 153 306 323 252 202 Slowest Speed 340 | 160 320 340 340 245 Overloaded Moves . | . . . . . Propulsion Burnouts . | . . . . . Robots Hopped . | . . . . . Potential Cave-ins . | . . . . . Cave-ins Triggered . | . . . . . Exploration Rate (%) 38 | 3 94 12 73 10 Regions Visited 4 Branch Regions 2 Pre-discovered Areas . | . . . . . Known Exits Taken 3 | . 1 1 1 . Unknown Exits Taken 1 | 1 . . . . Scrap Searched 3 | . . . 3 . Spaces Dug 3 | . 2 1 . . Terrain Destroyed 29 | . 2 1 . 26 Melee 3 | . 2 1 . . Projectile 9 | . . . . 9 AOE 17 | . . . . 17 Terrain Rammed . | . . . . . Walls Destroyed . | . . . . . Machines Disabled . | . . . . . Actions | -11 -10 -10 -7 -5 --------- Run | Yrd Mat Sub Scr Fac Total 2834 | 41 1034 205 1078 476 Wait 80 | . 6 47 . 27 Move 2540 | 27 912 151 1062 388 Hop . | . . . . . Pick Up 41 | 2 28 . 6 5 Fast Attach 19 | 5 1 . 1 12 Attach 10 | 1 2 . . 7 Detach 2 | . . . . 2 Swap 12 | . 6 3 . 3 Drop 24 | . 6 1 9 8 Fire 87 | 6 57 . . 24 Melee 19 | . 16 3 . . Ram . | . . . . . Kick . | . . . . . Crush . | . . . . . Escape Stasis . | . . . . . Rewire . | . . . . . Trap . | . . . . . Miscellaneous . | . . . . . Route ------- -11/Scrapyard -10/Materials (discovered 5 exits: *Mat x3 / *Min / *Sub) -10/Subcaves -7/Scraptown (discovered 2 exits: *Fac x2) -5/Factory History --------- Turn | Location | Event 28 | -11/Scrapyard | Discovered new exit (range 14) 70 | -11/Scrapyard | Entered Materials 314 | -10/Materials | Build established: Mutant 622 | -10/Materials | Discovered new exit (range 7) 946 | -10/Materials | Discovered new exit (range 11) 1333 | -10/Materials | Discovered new exit (range 11) 1453 | -10/Materials | Identified exit to Materials 1649 | -10/Materials | Discovered exit to Materials (range 12) 1881 | -10/Materials | Discovered new exit (range 9) 1903 | -10/Materials | Identified exit to Mines 2444 | -10/Materials | Identified exit to Subcaves 3118 | -10/Materials | Entered Subcaves 3119 | -10/Subcaves | Approached by a straggling Scientist 3410 | -10/Subcaves | Shifting Twisted Machinery released Spk. Treads 3456 | -10/Subcaves | Shifting Twisted Machinery released Mak. Laser 3649 | -10/Subcaves | Identified exit to Scraptown 3665 | -10/Subcaves | Entered Scraptown 4147 | -7/Scraptown | Discovered new exit (range 3) 4154 | -7/Scraptown | Identified exit to Factory 4377 | -7/Scraptown | Visited Awakened 4434 | -7/Scraptown | Visited IN-MT5's Study 4489 | -7/Scraptown | Visited Cave Peace 4589 | -7/Scraptown | Visited UFD Registry 4589 | -7/Scraptown | Registered with UFD as "Matterface" 4644 | -7/Scraptown | Visited Curators Association 4762 | -7/Scraptown | Visited Scrapoid Pod Storage 5177 | -7/Scraptown | Visited Chapter 10 5252 | -7/Scraptown | Visited Supply Room 5320 | -7/Scraptown | Visited Scrap Suit Storage 5365 | -7/Scraptown | Visited Cartography Club 5488 | -7/Scraptown | Discovered exit to Factory (range 5) 5738 | -7/Scraptown | Visited Botcube Research 5783 | -7/Scraptown | Visited LU-1G1's Boring Crew 6030 | -7/Scraptown | Found Scrap Suit 6041 | -7/Scraptown | Found Scrap Suit 6169 | -7/Scraptown | Met Optimus 6169 | -7/Scraptown | Accepted into 0bPrime 6359 | -7/Scraptown | Entered Factory 6359 | -5/Factory | Evolved 10 slots: Power x1, Propulsion x3, Utility x6 6658 | -5/Factory | Build established: Scavenger-Mutant 7266 | -5/Factory | Self-destructed Last Messages --------------- Acquired 74 matter. X76ZO:ERSVZFW7STRNU LPD D9R Acquired Imp. Treads. K-01 Serf cleans the Nuclear Reactor. Imp. Treads destroyed. Hvy. Phase Cannon blasted off. Acquired Hvy. Phase Cannon. Penetrated by Slug. System corrupted: Matter fused (-8). H-71 Marshal calls for reinforcements. ALERT: Hostile activity reported, dispatching reinforcements to area. Penetrated by Slug. Imp. Shock Absorption System destroyed. Spk. Treads destroyed. Lgt. Treads destroyed. Adv. Cooling System blasted off. Penetrated by Slug. Med. Treads destroyed. Lgt. Ion Engine destroyed. Map ----- +----------------------------------------------------+ | ?????????????????????????????????????????????????? | | ?????????????????????????????????????????????????? | | ?????????????????????????????????????????????????? | | ?????????????????????????????????????????????????? | | ?????????????????????????????????????????????????? | | ?????????????????????????????????????????????????? | | ?????????????????????????????????????????????????? | | ?????????????????????????????????????????????????? | | ?????????????????????????????????????????????????? | | ?????????????????????????????????????????????????? | | ?????????????????????????????????????????????????? | | ?????????????????????????????????????????????????? | | ?????????????????????????k???????????????????????? | | ?????????????????????????????????????????????????? | | ?????????????????????????????????????????????????? | | ?????????????????????????????????????????????????? | | ?????????????????????????#???????????????????????? | | ????????????????????C?###;#####################??? | | ??????????????????????# ?? | | ??????????????????????# ?? | | ??????????????????????# ? | | ??????????????????????# % ? | | ??????????????????????# % ? | | ??????????????????????# % % #####+###########????? | | ??????????????????????#% %#?# [ #????????? | | ??????????????????????# @ #?# #????????? | | ??????????????????????+ % #?# """ """ #????????? | | ??????????????????????# #?# """ """ #????????? | | ??????????????????????# #?# """ """ #????????? | | ??????????????????????# #?# #????????? | | ??????????????????????# #?# """ """ #????????? | | ??????????????????????# #?# """ """ #????????? | | ??????????????????????# #?# """ """ #????????? | | ??????????????????????# #?#k #????????? | | ??????????????????????# ### """ """ #????????? | | ??????????????????????# ## """ """ #????????? | | ??????????????????????# ### """ """ +????????? | | ?????????????????????? ?#[ [ #????????? | | ?????????????????????? % ?#! #???###### | | ?????????????????????? ?# ! #?### # | | ??????????????????????? H x??####+######## | | ?????????????????????????????????# #??###" | | ?????????????????????????????????# #??# | | ?????????????????????????????????# #??# | | ########?????????????????????????# #??# | | #?????????????????????????# #??# | | """"" #?????????????????????????# #??# | | """"" #?????????????# ##### #### | | ?""" #############?# ###"""" # | | ??? # % | +----------------------------------------------------+ Best States ------------- Heat Dissipation 90 Energy Generation 19 Energy Capacity 250 Matter Stores 300 Matter Capacity 300 Sight Range 16 Robot Scan Range 15 Terrain Scan Density 10 Resistance: EX 50 Weapon Cycling 20 Evasion (%) 40 Recoil Reduction 5 Particle Charging 15 Item Schematics ----------------- None Robot Schematics ------------------ None Fabricated ------------ Nothing Repaired ---------- Nothing Studied --------- None Alien Tech Used ----------------- None Achievements -------------- None Challenges ------------ None Game ------ Seed UltimateAccelerationPick Manual? 0 Play Time 00:35:23 Cumulative 60.5 hours Start 2026.04.19 @ 10:15:17 End 2026.04.19 @ 10:48:59 Sessions 1 Manual Loads 0 Difficulty Rogue Special Mode None Game No. 64 Rogue 10 Adventurer 54 Explorer 0 Win Type - Total 1 Types 1/0/0/0/0/0/0/0/0/0 Lore% 33 Gallery% 40 Achievement% 37 Wizard Run 0 Options --------- Layout 1 ASCII 0 Keyboard 0 Movement Mouse Keybinds 1 Fullscreen 1 Font 32/Tamsyn Map View 50x35 Zoom Use 0% Tactical HUD 0 Map Filters NONE Filters NONE Steam 1 RUN: b85105fa-3147-467e-9ba0-5bcbed12fcfd